bitfinex-derivatives/quotes_ETHF0:USTF0_20250501
["timestamp","ask_amount","ask_price","bid_price","bid_amount"]
[1746061355897,1.11062,1800.7,1800.6,2.81654]
[1746061356298,10.6077,1800.8,1800.7,1.11062]
[1746061356596,10.6077,1800.8,1800.7,2.77972]
[1746061356795,10.6077,1800.8,1800.4,6.85422]
[1746061356995,10.6077,1800.8,1800.7,1.11062]
[1746061358397,7.3999,1800.8,1800.7,1.11062]
[1746061358801,1.11066,1800.7,1800.6,1.11066]
[1746061359190,6.62296,1800.7,1800.6,1.11066]
[1746061361501,5.5123,1800.7,1800.6,1.11066]
[1746061361798,3.788,1800.7,1800.6,1.11066]
[1746061364091,1.91526,1800.8,1800.5,1.6691]
[1746061364297,1.91526,1800.8,1800.7,1.11062]
[1746061365198,7.32966,1800.8,1800.7,1.11062]
[1746061366303,7.32966,1800.8,1800.7,2.75012]
[1746061367501,5.70326,1800.8,1800.7,2.75012]
[1746061368894,3.788,1800.8,1800.7,2.75012]
[1746061369088,1.11046,1801.0,1800.9,1.1105]
[1746061369797,1.11046,1801.0,1800.9,2.7621]
[1746061369999,2.78936,1801.0,1800.9,2.7621]
[1746061370295,6.57736,1801.0,1800.9,1.6516]
[1746061372796,1.1105,1800.9,1800.8,1.91521]
[1746061373101,2.6931,1800.9,1800.8,3.59141]
[1746061374103,6.4811,1800.9,1800.8,3.59141]
[1746061374693,4.8985,1800.9,1800.8,3.59141]
[1746061375708,1.11062,1800.7,1800.6,1.11065]
[1746061376005,3.5952,1800.8,1800.7,1.11062]
[1746061376305,7.3832,1800.8,1800.7,1.11062]
[1746061376499,4.6188,1800.8,1800.7,1.11062]
[1746061376693,4.6188,1800.8,1800.7,1.92242]
[1746061376894,3.788,1800.8,1800.7,2.73952]
[1746061377299,6.78489,1801.0,1800.9,1.1105]
[1746061377501,1.1105,1800.9,1800.8,2.81861]
[1746061378205,4.8985,1800.9,1800.8,2.81861]
[1746061378805,6.5608,1800.9,1800.8,2.81861]
[1746061379198,7.4194,1800.9,1800.8,2.81861]
[1746061380307,7.4194,1800.9,1800.8,1.7081]
[1746061380608,7.4194,1800.9,1800.8,2.81866]
[1746061381903,7.4194,1800.9,1800.8,1.7081]
[1746061382101,6.5608,1800.9,1800.8,2.81866]
[1746061384116,5.4503,1800.9,1800.7,1.11058]
[1746061384316,1.11064,1800.7,1800.6,1.6733]
[1746061384717,4.49044,1800.7,1800.6,1.6733]
[1746061385217,8.27844,1800.7,1800.6,1.6733]
[1746061385417,8.27844,1800.7,1800.6,2.78398]
[1746061385718,7.43434,1800.7,1800.6,2.78398]
[1746061387419,5.70484,1800.7,1800.6,2.78398]
[1746061388220,4.5942,1800.7,1800.6,2.78398]
[1746061388624,3.788,1800.7,1800.6,2.78398]
[1746061389118,3.7913245,1800.7,1800.6,2.78398]
[1746061389325,0.0033245,1800.7,1800.6,2.78398]
[1746061391620,0.0033245,1800.7,1800.6,5.99178]
[1746061391820,0.0033245,1800.7,1800.6,14.49678]
[1746061397218,4.5e-06,1800.7,1800.6,14.49678]
[1746061399125,4.5e-06,1800.7,1800.6,14.90659647]
[1746061401126,4.5e-06,1800.7,1800.6,9.90659647]
[1746061402123,4.5e-06,1800.7,1800.6,14.90659647]
[1746061403731,4.5e-06,1800.7,1800.6,9.90659647]
[1746061405830,4.5e-06,1800.7,1800.6,15.73659647]
[1746061413638,4.5e-06,1800.7,1800.6,20.73659647]
[1746061416137,4.5e-06,1800.7,1800.6,15.73659647]
[1746061416741,4.5e-06,1800.7,1800.6,20.73659647]
[1746061417734,4.5e-06,1800.7,1800.6,15.73659647]
[1746061424437,1.675,1801.1,1801.0,1.11043]
[1746061424638,1.675,1801.1,1801.0,7.81923]
[1746061425141,1.675,1801.1,1801.0,13.26383]
[1746061428143,1.675,1801.1,1801.0,9.47583]
[1746061428443,1.675,1801.1,1801.0,7.81923]
[1746061429240,1.675,1801.1,1801.0,11.60723]
[1746061430142,1.675,1801.1,1801.0,7.81923]
[1746061431245,1.675,1801.1,1801.0,11.60723]
[1746061432138,1.675,1801.1,1801.0,7.81923]
[1746061432341,1.675,1801.1,1801.0,4.61143]
[1746061435145,4.8828,1801.1,1800.7,3.2078]
[1746061435337,12.65875,1801.1,1800.5,3.501]
[1746061435543,1.11051,1800.9,1800.8,1.11056]
[1746061435743,1.7097,1801.0,1800.5,6.27785]
[1746061436048,0.8161,1800.9,1800.8,1.11054]
[1746061436254,4.6041,1800.9,1800.8,1.11054]
[1746061436444,9.6041,1800.9,1800.8,1.11054]
[1746061438353,10.7146,1800.9,1800.7,1.11057]
[1746061438650,10.7146,1800.9,1800.6,1.11064]
[1746061438651,1.11056,1800.8,1800.6,1.11064]
[1746061439150,8.788,1800.8,1800.7,1.11062]
[1746061439344,3.788,1800.8,1800.7,1.11062]
[1746061439545,8.788,1800.8,1800.5,4.31853]
[1746061439745,3.788,1800.8,1800.5,3.2078]
[1746061439940,3.788,1800.8,1800.7,1.11062]
[1746061440150,0.8161,1800.9,1800.8,1.11056]
[1746061441353,0.8161,1800.9,1800.8,2.77726]
[1746061443157,0.8161,1800.9,1800.8,1.11056]
[1746061443854,0.8161,1800.9,1800.8,2.81006]
[1746061444158,0.8161,1800.9,1800.8,6.59806]
[1746061445358,12.76772783,1801.4,1800.9,2.77625]
[1746061445656,13.87791783,1801.4,1801.2,1.11027]
[1746061445955,4.61319,1801.4,1801.2,1.11027]
[1746061446159,13.40119,1801.4,1801.2,1.11027]
[1746061446857,0.855,1801.3,1801.2,1.11027]
[1746061447246,5.855,1801.3,1801.2,1.11027]
[1746061448152,9.643,1801.3,1801.2,1.11027]
[1746061448962,18.90772783,1801.3,1801.2,1.11027]
[1746061450260,20.01797783,1801.3,1801.2,1.11027]
[1746061450560,18.90772783,1801.3,1801.2,1.11027]
[1746061450749,13.90772783,1801.3,1801.2,1.11027]
[1746061452357,14.73292783,1801.3,1801.2,1.11027]
[1746061454258,16.37842783,1801.3,1801.2,1.11027]
[1746061455162,13.90772783,1801.3,1801.2,1.11027]
[1746061456860,13.90772783,1801.3,1801.2,1.91697]
[1746061457163,10.11972783,1801.3,1801.2,1.91697]
[1746061457358,10.11972783,1801.3,1801.2,2.74207]
[1746061458359,14.82283605,1802.2,1801.2,10.1348]
[1746061458551,11.08412293,1802.5,1802.1,5.9821]
[1746061458756,14.28502046,1802.7,1802.6,1.10945]
[1746061458959,4.28272936,1802.7,1802.6,7.82025]
[1746061459253,22.91814435,1803.2,1802.6,12.82025]
[1746061459457,11.1006,1803.9,1803.1,5.59233827]
[1746061459654,11.1006,1803.9,1803.6,1.10879]
[1746061459856,11.1006,1803.5,1803.2,3.2078]
[1746061460072,11.1006,1803.4,1803.3,1.10899]
[1746061460368,1.7303,1803.8,1803.2,3.2078]
[1746061460661,9.87746,1803.4,1803.2,3.2078]
[1746061461154,1.7303,1803.8,1803.2,3.2078]
[1746061461360,9.87746,1803.5,1803.3,0.17331649]
[1746061461867,9.87746,1803.5,1803.4,0.17331649]
[1746061462059,18.30781704,1803.5,1803.4,0.17331649]
[1746061462253,36.97327704,1803.5,1803.4,0.17331649]
[1746061462462,1.10896,1803.4,1803.0,3.2078]
[1746061462765,9.87746,1803.0,1802.9,9.0188982]
[1746061463267,3.788,1803.0,1802.9,12.40004755]
[1746061463771,3.788,1803.0,1802.9,10.80924935]
[1746061464161,23.86858704,1803.0,1802.9,9.21114935]
[1746061464367,23.86858704,1803.0,1802.7,4.8752]
[1746061464558,9.87746,1802.8,1802.5,7.4207982]
[1746061464865,9.87746,1802.6,1802.5,7.4207982]
[1746061465069,9.87746,1802.6,1802.5,7.59418744]
[1746061465262,27.65658704,1802.6,1802.5,7.59418744]
[1746061465569,27.65658704,1802.6,1802.5,7.4207982]
[1746061465963,27.65658704,1802.6,1802.4,1.6674]
[1746061466163,9.87746,1802.5,1802.4,1.6674]
[1746061466365,9.87746,1802.5,1802.4,4.8752]
[1746061466667,3.788,1802.6,1802.4,5.04859864]
[1746061466859,9.87746,1802.5,1802.4,5.04859864]
[1746061467168,9.87746,1802.5,1802.4,6.15816864]
[1746061467369,3.788,1802.6,1802.4,5.04859864]
[1746061467575,9.87746,1802.5,1802.4,5.04859864]
[1746061467771,9.87746,1802.5,1802.4,1.84079864]
[1746061467969,3.788,1802.6,1802.4,1.84079864]
[1746061468168,9.87746,1802.5,1802.4,1.84079864]
[1746061468563,1.10941,1802.7,1802.4,1.84079864]
[1746061468768,9.87746,1802.5,1802.4,2.95036864]
[1746061469069,5.63284352,1802.5,1802.2,3.753]
[1746061469368,1.1096,1802.4,1802.3,3.2078]
[1746061469563,6.74249352,1802.3,1802.0,8.5306082]
[1746061469765,5.63284352,1802.1,1802.0,8.5306082]
[1746061470063,15.10077704,1802.3,1802.0,8.5306082]
[1746061470259,5.63284352,1802.1,1802.0,8.5306082]
[1746061470463,5.63284352,1802.2,1802.1,1.10972]
[1746061470664,17.77912704,1802.3,1802.1,1.10972]
[1746061470665,3.788,1802.3,1802.1,3.2078]
[1746061470872,3.788,1802.3,1802.2,1.10969]
[1746061471058,3.788,1802.3,1802.2,2.72629]
[1746061471262,1.10947,1802.6,1802.3,1.10962]
[1746061471463,5.63284352,1802.4,1802.3,4.31742]
[1746061471764,5.63284352,1802.4,1802.3,4.49083288]
[1746061472770,4.0697,1802.7,1802.3,4.31742]
[1746061473070,1.10952,1802.5,1802.2,2.72626]
[1746061473463,1.10948,1802.6,1802.4,1.10955]
[1746061473664,1.10948,1802.6,1802.3,1.10959]
[1746061473871,15.10060704,1802.6,1802.2,1.6166]
[1746061474064,15.10060704,1802.6,1802.3,1.10958]
[1746061474268,2.73353,1802.5,1802.3,1.1096]
[1746061474472,1.10965,1802.3,1802.1,4.31751]
[1746061474665,1.624,1802.2,1802.1,4.31756]
[1746061475166,5.412,1802.2,1802.1,4.49098668]
[1746061475872,19.40312704,1802.2,1802.1,0.17342668]
[1746061476068,19.40312704,1802.2,1802.0,5.83]
[1746061476272,20.51284704,1802.2,1802.0,6.9398]
[1746061476772,19.40312704,1802.2,1802.1,1.10976]
[1746061477369,19.40312704,1802.2,1802.1,1.28318987]
[1746061477868,19.40312704,1802.2,1802.1,1.10976]
[1746061478775,19.40312704,1802.2,1802.1,1.28319527]
[1746061480177,19.40312704,1802.2,1802.1,1.10976]
[1746061481070,15.61512704,1802.2,1802.1,1.10976]
[1746061481270,15.61512704,1802.2,1802.1,1.28319245]
[1746061483166,1.624,1802.2,1802.1,4.49099245]
[1746061484381,0.8118,1802.4,1802.3,1.10963]
[1746061485674,2.5462,1802.4,1802.3,1.10963]
[1746061486782,16.53732704,1802.4,1802.3,1.10963]
[1746061487081,16.53732704,1802.4,1802.3,1.28306245]
[1746061488077,17.64689704,1802.4,1802.3,1.28306245]
[1746061488382,16.53732704,1802.4,1802.3,1.28306245]
[1746061488575,17.64689704,1802.4,1802.3,1.28306245]
[1746061488976,16.53732704,1802.4,1802.3,1.28306245]
[1746061489275,20.32532704,1802.4,1802.3,1.28306245]
[1746061491277,6.3342,1802.4,1802.3,1.28306245]
[1746061492183,2.5462,1802.4,1802.3,1.28306245]
[1746061494086,6.3342,1802.4,1802.3,1.28306245]
[1746061495189,2.5462,1802.4,1802.3,1.28306245]
[1746061495481,2.5462,1802.4,1802.3,4.49086245]
[1746061496787,2.5462,1802.4,1802.3,1.28306245]
[1746061497382,2.5462,1802.4,1802.3,4.49086245]
[1746061497594,0.8619,1802.7,1802.6,1.10945]
[1746061497791,14.85302704,1802.7,1802.6,1.10945]
[1746061498085,18.64102704,1802.7,1802.6,1.10945]
[1746061498591,20.22532704,1802.7,1802.6,1.28288245]
[1746061499289,16.43732704,1802.7,1802.6,1.28288245]
[1746061500089,20.22532704,1802.7,1802.6,1.28288245]
[1746061501089,5.3723,1802.7,1802.6,1.28288245]
[1746061501390,1.5843,1802.7,1802.6,1.28288245]
[1746061501886,1.5843,1802.7,1802.6,2.90598245]
[1746061502882,1.5843,1802.7,1802.6,1.28288245]
[1746061505793,1.5843,1802.7,1802.6,1.28288245]
[1746061505980,1.5843,1802.7,1802.6,1.10945]
[1746061506179,1.5843,1802.7,1802.6,8.70363544]
[1746061506985,15.57542704,1802.7,1802.6,8.70363544]
[1746061508794,1.5843,1802.7,1802.6,22.85181779]
[1746061508989,1.5843,1802.7,1802.6,24.55911779]
[1746061510191,1.5843,1802.7,1802.6,17.13831959]
[1746061510394,1.5843,1802.7,1802.6,26.5622169]
[1746061510689,15.57542704,1802.7,1802.6,26.5622169]
[1746061510892,16.68481704,1802.7,1802.6,25.4527669]
[1746061511096,20.47281704,1802.7,1802.6,25.4527669]
[1746061511295,20.47281704,1802.7,1802.6,26.5622169]
[1746061511492,19.36342704,1802.7,1802.6,26.5622169]
[1746061511996,20.47281704,1802.7,1802.6,25.4527669]
[1746061512298,20.47281704,1802.7,1802.6,25.27937966]
[1746061512493,1.10951,1802.5,1802.4,7.35003483]
[1746061512690,4.31731,1802.5,1802.4,8.63303246]
[1746061512888,18.30843704,1802.5,1802.4,8.63303246]
[1746061513195,22.89703704,1802.5,1802.4,7.52346246]
[1746061513698,26.72003704,1802.5,1802.4,7.52346246]
[1746061514799,1.10957,1802.4,1802.3,8.45963483]
[1746061515099,3.49107,1802.4,1802.3,7.35003483]
[1746061515290,17.48219704,1802.4,1802.3,7.35003483]
[1746061515493,17.48219704,1802.4,1802.3,7.52347506]
[1746061515695,16.37262704,1802.4,1802.3,8.45966483]
[1746061515995,17.48219704,1802.4,1802.3,7.52346941]
[1746061516196,21.27019704,1802.4,1802.3,7.52347042]
[1746061516596,21.27019704,1802.4,1802.3,8.63310042]
[1746061516993,20.16062704,1802.4,1802.3,8.63310042]
[1746061517797,21.27019704,1802.4,1802.3,8.63310042]
[1746061517998,20.16062704,1802.4,1802.3,8.63310042]
[1746061518394,6.1695,1802.4,1802.3,8.63310042]
[1746061518900,6.1695,1802.4,1802.3,10.23709018]
[1746061519096,3.49107,1802.4,1802.3,8.63309018]
[1746061519398,17.48219704,1802.4,1802.3,8.63309546]
[1746061519696,16.37262704,1802.4,1802.3,15.43396756]
[1746061519891,17.48219704,1802.4,1802.3,15.43396756]
[1746061520103,21.27019704,1802.4,1802.3,14.32433756]
[1746061521997,7.27907,1802.4,1802.3,14.32433756]
[1746061522390,7.27907,1802.4,1802.3,15.43396756]
[1746061522699,21.27019704,1802.4,1802.3,14.32433756]
[1746061523300,21.27019704,1802.4,1802.3,0.17343063]
[1746061524489,1.10969,1802.3,1802.2,1.10969]
[1746061524694,2.77419,1802.3,1802.2,1.10969]
[1746061524899,16.76531704,1802.3,1802.2,1.28313229]
[1746061525098,20.55331704,1802.3,1802.2,1.28313229]
[1746061525699,20.55331704,1802.3,1802.2,0.17344229]
[1746061526200,20.55331704,1802.3,1802.2,1.28313229]
[1746061527303,20.55331704,1802.3,1802.2,0.17344229]
[1746061528201,20.55331704,1802.3,1802.2,1.28313229]
[1746061529304,24.32031704,1802.3,1802.2,1.28313229]
[1746061530292,20.55331704,1802.3,1802.2,1.28313229]
[1746061530497,24.32031704,1802.3,1802.2,1.28313229]
[1746061530802,19.44362704,1802.3,1802.2,1.28313229]
[1746061531004,5.4525,1802.3,1802.2,1.28313229]
[1746061531193,5.4525,1802.3,1802.2,2.99733229]
[1746061532004,6.56213,1802.3,1802.2,1.28313229]
[1746061532207,20.55325704,1802.3,1802.2,1.28313229]
[1746061532509,19.44362704,1802.3,1802.2,1.28313229]
[1746061533205,1.6645,1802.3,1802.2,1.28313229]
[1746061533400,1.6645,1802.3,1802.2,3.00513229]
[1746061533602,0.7971,1802.4,1802.3,1.10963]
[1746061533802,0.7971,1802.4,1802.3,2.83163]
[1746061534002,3.64047,1802.4,1802.3,3.00507229]
[1746061534203,3.64047,1802.4,1802.3,1.28307229]
[1746061534606,17.63159704,1802.4,1802.3,1.28307229]
[1746061535211,21.41959704,1802.4,1802.3,1.28307229]
[1746061535803,21.41959704,1802.4,1802.3,0.17344229]
[1746061536305,21.41959704,1802.4,1802.3,1.28307229]
[1746061536509,25.18659704,1802.4,1802.3,1.28307229]
[1746061537110,25.18659704,1802.4,1802.3,0.17344229]
[1746061538197,25.18659704,1802.4,1802.3,1.28307229]
[1746061539910,25.18659704,1802.4,1802.3,0.17344229]
[1746061540909,25.18659704,1802.4,1802.3,1.28307229]
[1746061541105,25.18659704,1802.4,1802.3,0.17344229]
[1746061542398,1.10969,1802.2,1802.1,7.35642328]
[1746061542812,15.10081704,1802.2,1802.1,7.35642328]
[1746061543108,21.30671704,1802.2,1802.1,8.46618328]
[1746061543508,21.30671704,1802.2,1802.1,1.10976]
[1746061543709,1.1098,1802.1,1802.0,1.10979]
[1746061543908,6.4993,1802.1,1802.0,1.10979]
[1746061544112,24.27842704,1802.1,1802.0,1.10979]
[1746061547414,9.1775,1802.1,1802.0,1.10979]
[1746061548319,9.1775,1802.1,1802.0,2.76389]
[1746061548507,3.788,1802.1,1802.0,2.76389]
[1746061548714,3.61455771,1802.1,1802.0,5.97169]
[1746061549220,1.6676,1802.3,1802.2,1.10969]
[1746061549919,3.64633,1802.3,1802.2,1.10969]
[1746061550121,6.3247,1802.3,1802.2,1.10969]
[1746061551528,7.43433,1802.3,1802.2,1.10969]
[1746061551728,6.3247,1802.3,1802.2,8.45571009]
[1746061551928,7.43433,1802.3,1802.2,8.45571009]
[1746061552228,1.10976,1802.1,1802.0,11.13119731]
[1746061552428,1.6846,1802.2,1802.0,11.13119731]
[1746061552636,2.79432,1802.2,1802.1,1.10976]
[1746061552928,15.67572704,1802.2,1802.0,11.13119731]
[1746061553227,1.6846,1802.1,1802.0,12.24101731]
[1746061553530,1.6846,1802.1,1802.0,1.10982]
[1746061554131,5.4726,1802.1,1802.0,1.10982]
[1746061554630,5.4726,1802.1,1802.0,1.28326662]
[1746061556825,6.58236,1802.1,1802.0,1.28326662]
[1746061557231,20.57348704,1802.1,1802.0,1.28326662]
[1746061557534,19.46372704,1802.1,1802.0,1.28326662]
[1746061557831,19.46372704,1802.1,1802.0,26.56760943]
[1746061558934,20.57348704,1802.1,1802.0,25.45778943]
[1746061560436,20.57348704,1802.1,1802.0,1.28326662]
[1746061560634,23.78128704,1802.1,1802.0,0.17344662]
[1746061561027,20.57348704,1802.1,1802.0,1.28326662]
[1746061561224,20.57348704,1802.1,1802.0,0.17344662]
[1746061562230,20.57348704,1802.1,1801.7,8.07713339]
[1746061562231,1.10994,1801.8,1801.7,8.07713339]
[1746061562431,8.05974,1801.8,1801.7,8.07713339]
[1746061562629,13.05974,1801.8,1801.7,8.07713339]
[1746061563235,11.84774,1801.8,1801.7,8.07713339]
[1746061563934,11.84774,1801.8,1801.7,11.04504595]
[1746061565234,11.84874,1801.8,1801.7,11.04504595]
[1746061565437,8.64094,1801.8,1801.7,11.04504595]
[1746061565935,10.24324,1801.8,1801.7,12.15504595]
[1746061566236,6.45524,1801.8,1801.7,11.04504595]
[1746061566938,3.743,1801.9,1801.8,1.10994]
[1746061567140,5.4765,1801.9,1801.8,3.66224]
[1746061567439,1.7335,1801.9,1801.8,3.66224]
[1746061567938,1.10977,1802.1,1801.8,7.5523]
[1746061568231,3.4256,1802.2,1801.8,3.6622]
[1746061568538,1.7335,1802.0,1801.9,1.10988]
[1746061572344,2.84332,1802.0,1801.9,1.10988]
[1746061572541,1.7335,1802.0,1801.9,1.10988]
[1746061572742,1.10988,1801.9,1801.8,1.10988]
[1746061573045,1.7335,1802.0,1801.7,1.10996]
[1746061573233,2.3866,1801.8,1801.5,3.2078]
[1746061573438,2.3866,1801.8,1801.3,3.2078]
[1746061573439,8.5424,1801.7,1801.3,3.2078]
[1746061573639,1.5916,1801.6,1801.5,1.11013]
[1746061574333,3.2078,1802.3,1801.6,2.77515]
[1746061574536,1.5916,1802.0,1801.9,1.10984]
[1746061575136,1.5916,1802.0,1801.9,2.93141712]
[1746061575337,3.743,1802.2,1802.1,1.10976]
[1746061575537,5.3346,1802.2,1802.1,1.10976]
[1746061575736,1.5916,1802.2,1802.1,1.10976]
[1746061575941,6.44429,1802.2,1802.1,1.10976]
[1746061576339,1.10976,1802.1,1802.0,2.75788]
[1746061576533,1.5819,1802.1,1802.0,2.93134193]
[1746061578144,3.743,1802.2,1802.0,1.82156193]
[1746061578448,3.743,1802.2,1802.1,3.51676]
[1746061578749,3.743,1802.2,1802.1,3.69022193]
[1746061578941,1.5819,1802.3,1802.2,1.10969]
[1746061579141,1.5819,1802.3,1802.2,2.84289]
[1746061579749,1.5819,1802.3,1802.2,3.01635193]
[1746061581244,2.69153,1802.3,1802.2,1.90666193]
[1746061581451,2.69153,1802.3,1802.2,0.17346193]
[1746061581745,3.47983,1802.3,1802.2,0.17346193]
[1746061582244,7.26783,1802.3,1802.2,0.17346193]
[1746061582449,10.47563,1802.3,1802.2,0.17346193]
[1746061582651,1.10981,1802.1,1801.9,1.10984]
[1746061582851,1.10982,1802.0,1801.9,1.10984]
[1746061583150,1.10982,1802.0,1801.9,1.28329635]
[1746061584152,6.60792,1802.0,1801.9,1.28329635]
[1746061586352,5.4981,1802.0,1801.9,1.28329635]
[1746061587156,1.7101,1802.0,1801.9,1.28329635]
[1746061587354,1.89796,1802.3,1802.2,1.10969]
[1746061587557,3.56826,1802.3,1802.2,1.10969]
[1746061588156,7.35626,1802.3,1802.2,1.10969]
[1746061588548,7.35625,1802.3,1802.2,1.10969]
[1746061589255,3.56825,1802.3,1802.2,1.10969]
[1746061590954,2.4586,1802.3,1802.2,1.10969]
[1746061591657,2.4586,1802.3,1802.2,1.28311794]
[1746061593857,1.6703,1802.3,1802.2,1.28311794]
[1746061594049,1.6703,1802.3,1802.2,2.11391794]
[1746061595353,1.6703,1802.3,1802.2,2.11392905]
[1746061595554,1.6703,1802.3,1802.2,1.28312905]
[1746061600357,40.0,1803.1,1803.0,1.1092]
[1746061600560,0.8328,1803.2,1803.0,1.10916]
[1746061600858,0.8328,1803.2,1802.8,3.2078]
[1746061601054,1.9419,1803.2,1803.0,1.10918]
[1746061601261,0.8328,1803.2,1802.8,3.2078]
[1746061601555,3.727,1803.1,1802.8,0.81]
[1746061601759,1.10924,1803.0,1802.8,1.1093]
[1746061601947,2.72274,1803.0,1802.8,1.1093]
[1746061602151,2.4463,1802.9,1802.8,1.1093]
[1746061602347,1.6135,1802.9,1802.8,1.1093]
[1746061602552,1.6135,1802.9,1802.8,1.28268191]
[1746061602748,1.6135,1802.9,1802.8,4.49048191]
[1746061604450,1.6135,1802.9,1802.8,6.22328191]
[1746061605560,1.6135,1802.9,1802.8,4.49048191]
[1746061606761,41.10899,1803.4,1802.8,8.38118191]
[1746061606959,7.0739,1803.3,1803.2,1.10903]
[1746061608158,10.8619,1803.3,1803.2,1.10903]
[1746061609370,11.97092,1803.3,1803.1,1.10912]
[1746061609668,1.6023,1803.2,1803.1,1.10912]
[1746061610260,5.3903,1803.2,1803.1,1.10912]
[1746061613162,1.6023,1803.2,1803.1,2.80662]
[1746061613465,1.6023,1803.2,1803.1,2.97994645]
[1746061617771,40.0,1803.4,1803.3,1.10902]
[1746061617977,41.5992,1803.4,1803.3,1.10902]
[1746061618881,40.0,1803.4,1803.3,6.10902]
[1746061619182,25.1081,1803.5,1803.4,1.10459632]
[1746061619383,20.9529,1803.5,1803.4,6.50969463]
[1746061619575,19.02131,1803.5,1803.4,11.68297003]
[1746061619775,17.11205,1803.5,1803.4,11.68297003]
[1746061620071,13.35971,1803.5,1803.4,11.23157172]
[1746061620276,1.7255,1804.1,1804.0,1.10859]
[1746061621581,2.83406,1804.1,1803.9,1.10861]
[1746061621783,1.10865,1803.9,1803.6,6.9228]
[1746061621983,1.6928,1803.8,1803.7,1.10877]
[1746061622185,7.0722,1803.8,1803.7,1.10877]
[1746061622979,8.18091,1803.8,1803.6,4.82379]
[1746061623180,1.5914,1803.7,1803.6,1.10879]
[1746061624289,6.48817,1803.7,1803.6,1.10879]
[1746061624590,6.48821,1803.7,1803.5,1.10887]
[1746061624780,1.6845,1803.6,1803.5,1.10887]
[1746061625181,5.4725,1803.6,1803.5,1.10887]
[1746061627382,5.4725,1803.6,1803.3,3.2078]
[1746061627579,1.7204,1803.5,1803.4,1.10896]
[1746061627783,1.7204,1803.5,1803.4,1.28224938]
[1746061628184,5.5084,1803.5,1803.4,1.28224938]
[1746061629188,1.7204,1803.5,1803.4,1.28224938]
[1746061630482,2.82929,1803.5,1803.4,1.28224938]
[1746061630691,1.7204,1803.5,1803.4,1.28224938]
[1746061631082,5.5084,1803.5,1803.4,1.28224938]
[1746061632384,6.3805,1803.5,1803.4,1.28224938]
[1746061633392,2.5925,1803.5,1803.4,1.28224938]
[1746061634084,6.3805,1803.5,1803.4,1.28224938]
[1746061636796,7.48939,1803.5,1803.4,1.28224938]
[1746061637295,6.3805,1803.5,1803.4,1.28224938]
[1746061637591,7.48939,1803.5,1803.4,1.28224938]
[1746061638095,7.48939,1803.5,1803.4,0.17328938]
[1746061640195,1.10902,1803.3,1803.2,1.10906]
[1746061640783,2.73532,1803.3,1803.2,1.28239228]
[1746061641189,6.52332,1803.3,1803.2,1.10906]
[1746061641886,6.52332,1803.3,1803.1,4.31694]
[1746061641887,1.10908,1803.2,1803.1,4.31694]
[1746061642189,2.4457,1803.2,1803.1,4.31694]
[1746061642395,2.4457,1803.2,1803.1,4.49027952]
[1746061642994,3.55478,1803.2,1803.1,4.49027952]
[1746061643193,7.34278,1803.2,1803.1,4.49027952]
[1746061643792,1.10919,1803.1,1802.7,15.52627]
[1746061643997,2.82339,1803.1,1803.0,1.10919]
[1746061644197,6.61139,1803.1,1803.0,1.28254781]
[1746061644600,6.61139,1803.1,1803.0,1.10919]
[1746061645091,5.5022,1803.1,1803.0,1.10919]
[1746061645298,1.7142,1803.1,1803.0,1.28253685]
[1746061648201,2.82334,1803.1,1803.0,1.28253685]
[1746061648594,1.7142,1803.1,1803.0,1.28253685]
[1746061648794,2.82334,1803.1,1803.0,1.28253685]
[1746061649002,1.7142,1803.1,1803.0,1.28253685]
[1746061653808,1.7142,1803.1,1803.0,4.49033685]
[1746061655201,1.10899,1803.4,1803.3,1.10902]
[1746061655407,1.5982,1803.5,1803.1,5.21625]
[1746061655608,2.70722,1803.3,1803.2,1.10908]
[1746061655905,2.70722,1803.3,1803.2,1.28242685]
[1746061656501,1.5982,1803.3,1803.2,1.28242685]
[1746061658112,5.3862,1803.3,1803.2,1.28242685]
[1746061659107,1.5982,1803.3,1803.2,1.28242685]
[1746061659611,1.5982,1803.3,1803.2,3.79131771]
[1746061662113,1.5982,1803.3,1803.2,6.99911771]
[1746061663113,1.5982,1803.3,1803.2,10.78711771]
[1746061663514,1.5982,1803.3,1803.2,24.56259301]
[1746061663714,1.624,1803.5,1803.4,1.10896]
[1746061663914,3.2331,1803.5,1803.4,1.10896]
[1746061664110,3.2331,1803.5,1803.4,1.2822799]
[1746061664502,3.2331,1803.5,1803.4,1.10896]
[1746061664711,1.6091,1803.5,1803.4,1.28227975]
[1746061664913,1.6091,1803.5,1803.4,2.11257975]
[1746061665313,1.6091,1803.5,1803.4,46.12037975]
[1746061668319,3.2078,1804.0,1803.6,2.77205]
[1746061668510,1.5728,1803.7,1803.6,1.10883]
[1746061668708,1.5728,1803.7,1803.6,2.98804975]
[1746061669718,1.6505,1803.9,1803.6,2.98804975]
[1746061669719,1.6505,1803.9,1803.8,1.10871]
[1746061670016,1.5728,1803.9,1803.8,1.28199888]
[1746061671015,1.5728,1803.9,1803.8,2.97819888]
[1746061671217,1.5728,1803.9,1803.8,1.28199888]
[1746061672918,30.84445,1803.9,1803.8,0.17328888]
[1746061673109,1.10871,1803.8,1803.7,10.98479473]
[1746061673311,6.45321,1803.8,1803.7,10.98479473]
[1746061673615,11.45321,1803.8,1803.7,10.98479473]
[1746061674216,15.24121,1803.8,1803.7,10.98479473]
[1746061674420,18.44901,1803.8,1803.7,10.98479473]
[1746061674613,13.44901,1803.8,1803.7,10.98479473]
[1746061674814,1.10883,1803.7,1803.5,41.90885]
[1746061675117,1.10883,1803.6,1803.5,41.90885]
[1746061675520,2.74233,1803.6,1803.5,42.08216022]
[1746061675714,1.6335,1803.6,1803.5,42.08216022]
[1746061676116,6.53033,1803.6,1803.5,42.08216022]
[1746061676424,5.4215,1803.6,1803.5,42.08216022]
[1746061677423,6.53033,1803.6,1803.5,42.08216022]
[1746061678526,34.69333,1803.6,1803.5,40.97331022]
[1746061678820,37.90113,1803.6,1803.5,0.17331022]
[1746061679419,1.10891,1803.5,1803.3,48.12600758]
[1746061679624,1.10891,1803.5,1803.4,1.10892]